Workbook

Sheet フィルタ効率計算
B2: フィルタ効率計算プログラム
B4: 計算手順 | V4: （参考資料）
B5: １． | C5: フィルタ選定時の性能試験法を入力する。（通常は比色法）
B6: ２． | C6: 粉じん除去率を計算するフィルタの効率欄に、１を入力する。 | V6: １．空調システムの粉じん量平衡式
B7: ３． | C7: 既知のデータを入力する。
B8: 1） | C8: 既知のフィルタ粉じん除去率は該当する除去率１ヶ所に入力する。他の換算値は自動計算される。
C9: (フィルタ粉じん除去率を求める計算においては、１．で指定した性能試験法の値が使用される。)
B10: 2） | C10: 室内発じん量は直接入力するか、在室人員と単位発じん量を入力し自動計算する。
B11: 3） | C11: 存在しないフィルタ、ダクト経路の入力欄はブランクとする。
B12: ４． | C12: 入力が済んだら「計算ボタン」を押す。
B14: 入出力画面
B15: フィルタ選定時の性能基準 | G15: （1:比色法 2:ＤＯＰ法）
C19: 外気粉じん濃度 | E19: mg/m3 | N19: 室内粉じん濃度 | P19: mg/m3 | W19: Ｃ：室内粉じん濃度[mg/m3] | AA19: ≦0.15 mg/m3 ※
M20: 室内発じん量 | P20: mg/h | W20: Ｇ：室内粉じん発生量[mg/h] ※
N21: 在室人員 | P21: 人 | W21: Ｇ＝ｎＫ
N22: 単位発じん量 | P22: mg/h人 | W22: ｎ：在室人員[人]
W23: Ｋ：単位発じん量[mg/h人] | AA23: ＝2 mg/h人(非喫煙の一般事務室・店舗) 7 mg/h人(喫煙居室) ※
C24: 風量 | E24: m3/h | G24: 風量 | I24: m3/h | AA24: 引用：改定 特定建築物における建築確認時審査のためのガイドラインP45
B25: 効率(計算:１ 入力:ﾌﾞﾗﾝｸ) | F25: 効率(計算:１ 入力:ﾌﾞﾗﾝｸ) | P25: 風量 | R25: m3/h | W25: Ｃｏａ：外気粉じん濃度[mg/m3] | AA25: ＝0.1 mg/m3 ※
B26: 粉じん除去率 | E26: %重量法 | F26: 粉じん除去率 | I26: %重量法 | O26: 効率(計算:１ 入力:ﾌﾞﾗﾝｸ) | W26: Ｖｏａ：外気導入量[m3/h] | AA26: ＝25～30 m3/h人 ※
E27: %比色法 | I27: %比色法 | P27: 粉じん除去率 | R27: %重量法 | W27: Ｖｒａ：空調機還気量[m3/h] | AA27: ※：数値が与えられている場合は、その値を使用する。
E28: %DOP法 | I28: %DOP法 | R28: %比色法 | W28: Ｖｃａ：室内機循環風量[m3/h]
R29: %DOP法 | W29: ηｉ：外気処理フィルタ粉じん除去率[-]
G30: 註）除じん除去率が"***"は、他の性能試験値への換算時に曲線の範囲外になっていることを示す。 | W30: ηａ：空調機フィルタ粉じん除去率[-]
W31: ηｒ：室内機フィルタ粉じん除去率[-]
W33: フィルタを2段設置する場合は下式による総合除去率を用いる。
W34: η：総合粉じん除去率
W35: η=1-(1-η1 )(1-η2 )
V37: ２．フィルタ選定時の性能基準
W38: 東京都の場合、フィルタ選定において事務所はＤＯＰ法、店舗と外気処理用は比色法を用いることと指導されている。
V40: ３．各性能試験毎の捕集率換算
W41: 各性能試験毎の捕集率換算は下図による。
AB53: 引用：空気調和衛生工学便覧第14版Ⅱ．P423

Sheet 捕集率換算
B3: 重量法 | C3: 比色法 | D3: y1 | E3: y2 | F3: y3 | G3: y4 | H3: y5 | I3: y6 | L3: 比色法 | M3: DOP法 | N3: y1 | O3: y2 | P3: y3 | Q3: y4
B4: 31 | C4: 7 | D4: =0.0025*B4^2-0.147*B4+9.1884 -> 7.0339 | L4: 23.8 | M4: 0 | N4: =0.0015*L4^2+0.6524*L4-16.257 -> 0.11978
B5: 40 | C5: 7.5 | D5: =0.0025*B5^2-0.147*B5+9.1884 -> 7.3084 | L5: 30 | M5: 4.5 | N5: 4.665
B6: 50 | C6: 8 | D6: =0.0025*B6^2-0.147*B6+9.1884 -> 8.0884 | L6: 36.5 | M6: 10 | N6: 9.553975
B7: 60 | C7: 9.5 | D7: =0.0025*B7^2-0.147*B7+9.1884 -> 9.3684 | E7: =0.0197*B7^2-2.1615*B7+68.27 -> 9.5 | L7: 40 | M7: 12.5 | N7: 12.239
B8: 62 | C8: 10 | E8: =0.0197*B8^2-2.1615*B8+68.27 -> 9.9838 | L8: 50 | M8: 20 | N8: 20.113
B9: 70 | C9: 13.5 | E9: =0.0197*B9^2-2.1615*B9+68.27 -> 13.495 | L9: 60 | M9: 28 | N9: 28.287
B10: 78.5 | C10: 20 | E10: =0.0197*B10^2-2.1615*B10+68.27 -> 19.988575 | F10: =0.0797*B10^2-11.779*B10+453.46 -> 19.939825 | L10: 62 | M10: 30 | N10: 29.9578
B11: 86 | C11: 30 | F11: =0.0797*B11^2-11.779*B11+453.46 -> 29.9272 | L11: 70 | M11: 37 | N11: 36.761
B12: 90 | C12: 39 | F12: =0.0797*B12^2-11.779*B12+453.46 -> 38.92 | G12: =0.5667*B12^2-99.017*B12+4360.2 -> 38.94 | L12: 73.5 | M12: 40 | N12: 39.797775 | O12: =0.0175*L12^2-1.693*L12+69.658 -> 39.761875
B13: 92.5 | C13: 50 | G13: =0.5667*B13^2-99.017*B13+4360.2 -> 49.954375 | L13: 80 | M13: 46.5 | O13: =0.0175*L13^2-1.693*L13+69.658 -> 46.218
B14: 94 | C14: 60 | G14: =0.5667*B14^2-99.017*B14+4360.2 -> 59.9632 | H14: =10*B14-880 -> 60 | L14: 83 | M14: 50 | O14: =0.0175*L14^2-1.693*L14+69.658 -> 49.6965 | P14: =0.0736*L14^2-10.803*L14+439.67 -> 50.0514
B15: 95 | C15: 70 | H15: =10*B15-880 -> 70 | I15: =90*B15-8480 -> 70 | L15: 88.5 | M15: 60 | P15: =0.0736*L15^2-10.803*L15+439.67 -> 60.0581
B16: 95.1 | C16: 80 | I16: =90*B16-8480 -> 79 | L16: 90 | M16: 63.5 | P16: =0.0736*L16^2-10.803*L16+439.67 -> 63.56 | Q16: =0.9762*L16^2-174.42*L16+7854.1 -> 63.52
B17: 95.2 | C17: 88 | I17: =90*B17-8480 -> 88 | L17: 92 | M17: 70 | Q17: =0.9762*L17^2-174.42*L17+7854.1 -> 70.0168
L18: 93.5 | M18: 80 | Q18: =0.9762*L18^2-174.42*L18+7854.1 -> 80.01445
L19: 94 | M19: 84.5 | Q19: =0.9762*L19^2-174.42*L19+7854.1 -> 84.3232
B51: 比色法 | C51: 重量法 | D51: y1 | E51: y2 | F51: y3 | G51: y4 | H51: y5 | I51: y6 | L51: DOP法 | M51: 比色法 | N51: y1 | O51: y2 | P51: y3 | Q51: y4
B52: 7 | C52: 31 | D52: =-4.6077*B52^2+87.829*B52-358.45 -> 30.5757 | L52: 0 | M52: 23.8 | N52: =-0.0029*L52^2+1.3652*L52+23.665 -> 23.665
B53: 7.5 | C53: 40 | D53: =-4.6077*B53^2+87.829*B53-358.45 -> 41.084375 | L53: 4.5 | M53: 30 | N53: 29.749675
B54: 8 | C54: 50 | D54: =-4.6077*B54^2+87.829*B54-358.45 -> 49.2892 | L54: 10 | M54: 36.5 | N54: 37.027
B55: 9.5 | C55: 60 | D55: =-4.6077*B55^2+87.829*B55-358.45 -> 60.080575 | E55: =-0.1097*B55^2+4.9724*B55+22.929 -> 60.266375 | L55: 12.5 | M55: 40 | N55: 40.276875
B56: 10 | C56: 62 | E56: =-0.1097*B56^2+4.9724*B56+22.929 -> 61.683 | L56: 20 | M56: 50 | N56: 49.809
B57: 13.5 | C57: 70 | E57: =-0.1097*B57^2+4.9724*B57+22.929 -> 70.063575 | L57: 28 | M57: 60 | N57: 59.617
B58: 20 | C58: 78.5 | E58: =-0.1097*B58^2+4.9724*B58+22.929 -> 78.497 | F58: =-0.0161*B58^2+1.5541*B58+53.851 -> 78.493 | L58: 30 | M58: 62 | N58: 62.011
B59: 30 | C59: 86 | F59: =-0.0161*B59^2+1.5541*B59+53.851 -> 85.984 | L59: 37 | M59: 70 | N59: 70.2073
B60: 39 | C60: 90 | F60: =-0.0161*B60^2+1.5541*B60+53.851 -> 89.9728 | G60: =-0.0037*B60^2+0.5548*B60+73.961 -> 89.9705 | L60: 40 | M60: 73.5 | N60: 73.633 | O60: =-0.0143*L60^2+2.2357*L60+6.9286 -> 73.4766
B61: 50 | C61: 92.5 | G61: =-0.0037*B61^2+0.5548*B61+73.961 -> 92.451 | L61: 46.5 | M61: 80 | O61: =-0.0143*L61^2+2.2357*L61+6.9286 -> 79.968475
B62: 60 | C62: 94 | G62: =-0.0037*B62^2+0.5548*B62+73.961 -> 93.929 | H62: =0.1*B62+88 -> 94 | L62: 50 | M62: 83 | O62: =-0.0143*L62^2+2.2357*L62+6.9286 -> 82.9636 | P62: =-0.009*L62^2+1.5394*L62+28.516 -> 82.986
B63: 70 | C63: 95 | H63: =0.1*B63+88 -> 95 | I63: =0.0111*B63+94.222 -> 94.999 | L63: 60 | M63: 88.5 | P63: =-0.009*L63^2+1.5394*L63+28.516 -> 88.48
B64: 80 | C64: 95.1 | I64: =0.0111*B64+94.222 -> 95.11 | L64: 63.5 | M64: 90 | P64: =-0.009*L64^2+1.5394*L64+28.516 -> 89.97765 | Q64: =-0.007*L64^2+1.2219*L64+40.684 -> 90.0489
B65: 88 | C65: 95.2 | I65: =0.0111*B65+94.222 -> 95.1988 | L65: 70 | M65: 92 | Q65: =-0.007*L65^2+1.2219*L65+40.684 -> 91.917
L66: 80 | M66: 93.5 | Q66: =-0.007*L66^2+1.2219*L66+40.684 -> 93.636
L67: 84.5 | M67: 94 | Q67: =-0.007*L67^2+1.2219*L67+40.684 -> 93.9528
